bitfinex/quotes_ETHUSD_20250115
["timestamp","ask_amount","ask_price","bid_price","bid_amount"]
[1736905229041,0.4095,3244.3,3244.0,3.08253]
[1736905229237,0.4095,3244.3,3244.0,3.390783]
[1736905229580,0.4095,3244.3,3243.7,0.03082544]
[1736905229581,0.4095,3244.6,3244.2,3.08242]
[1736905229748,0.4095,3244.6,3243.8,3.50698203]
[1736905229946,0.4095,3244.6,3244.0,3.08253]
[1736905230146,0.4095,3244.6,3243.9,3.0]
[1736905230356,0.4095,3244.9,3244.2,3.08238]
[1736905230573,0.4095,3244.9,3244.3,0.308238]
[1736905230959,0.4095,3244.9,3244.0,3.11339172]
[1736905231135,0.4095,3244.9,3244.3,3.0]
[1736905231471,0.4095,3244.9,3244.4,3.08221]
[1736905232207,0.4095,3244.9,3244.2,3.50698203]
[1736905232506,0.4095,3244.9,3244.4,3.08222]
[1736905233493,0.4095,3244.9,3244.4,4.1215602]
[1736905234854,0.4095,3244.9,3244.4,1.0393402]
[1736905235103,0.4095,3244.9,3244.0,3.08259]
[1736905235314,0.4095,3244.9,3243.8,3.08277]
[1736905235499,0.4095,3244.9,3243.4,4.92409053]
[1736905235685,0.4095,3244.7,3243.6,3.08295]
[1736905235886,0.758644,3244.7,3243.6,3.8223632]
[1736905236093,0.4095,3244.6,3243.6,3.8223632]
[1736905236465,0.4095,3244.6,3243.6,3.08295]
[1736905238608,3.49163,3244.6,3243.6,3.08295]
[1736905239641,3.08215,3244.5,3243.5,3.0]
[1736905239847,3.08215,3244.5,3243.5,6.08307]
[1736905240537,0.4095,3244.6,3243.6,3.08296]
[1736905240732,0.349147,3244.5,3243.6,3.08296]
[1736905242227,0.349147,3244.5,3243.5,3.0]
[1736905242561,0.4095,3244.4,3243.5,3.08305]
[1736905242883,3.08233,3244.3,3243.3,0.62637223]
[1736905243087,3.08233,3244.3,3243.0,3.50698203]
[1736905243088,0.6015,3244.2,3243.0,3.50698203]
[1736905243772,0.6015,3244.2,3243.1,3.08346]
[1736905244089,0.6015,3244.2,3243.0,3.50698203]
[1736905244090,0.4095,3244.1,3243.2,3.7423742]
[1736905245863,0.4095,3244.1,3243.2,0.6590442]
[1736905246071,0.4095,3244.1,3243.3,3.08326]
[1736905247290,0.4095,3244.1,3243.2,0.6590442]
[1736905247581,0.4095,3244.1,3243.0,3.50698203]
[1736905247886,0.4095,3244.1,3242.8,0.69880168]
[1736905248087,0.4095,3244.1,3242.6,3.95718167]
[1736905248088,3.08289,3243.8,3242.7,3.0838]
[1736905248389,0.4095,3243.7,3242.8,3.0]
[1736905248547,0.4095,3243.7,3242.6,3.95718167]
[1736905248860,0.4095,3243.3,3242.5,3.084]
[1736905251283,0.4095,3243.3,3242.3,3.65999318]
[1736905251484,0.4095,3243.3,3242.3,0.62915615]
[1736905251670,0.4095,3243.3,3242.4,3.08409]
[1736905252382,0.4095,3243.3,3242.5,3.08401]
[1736905252556,0.4095,3243.3,3242.5,3.45841044]
[1736905254192,0.6015,3243.3,3242.5,0.37440044]
[1736905254399,0.6015,3243.3,3242.4,3.08411]
[1736905254896,3.49307,3243.0,3242.1,3.0844]
[1736905255065,0.4095,3242.8,3242.0,2.52811036]
[1736905255271,3.49326,3242.8,3242.0,2.52811036]
[1736905255468,3.08387,3242.7,3242.0,2.52811036]
[1736905255878,3.08387,3242.7,3241.8,3.78222395]
[1736905255879,3.08387,3242.7,3241.8,0.62208599]
[1736905256093,3.08387,3242.7,3241.8,3.98429459]
[1736905256299,0.4095,3242.5,3241.4,2.52811036]
[1736905256464,3.0845,3242.1,3241.4,2.52811036]
[1736905256800,3.49409,3242.0,3241.4,2.52811036]
[1736905256983,3.08459,3242.0,3241.3,2.52811036]
[1736905257160,0.4095,3241.9,3241.3,2.52811036]
[1736905257490,0.4095,3241.9,3241.0,3.0854]
[1736905258496,3.0847,3241.8,3240.8,3.0]
[1736905258659,0.4095,3241.7,3240.9,3.08555]
[1736905258858,0.4095,3241.7,3241.0,0.608555]
[1736905260819,0.4095,3241.7,3240.9,0.61711799]
[1736905261016,0.4095,3241.3,3240.6,2.52811036]
[1736905261740,0.4095,3241.3,3240.5,3.08594]
[1736905262110,0.4095,3241.3,3240.3,3.50698203]
[1736905262313,0.4095,3241.3,3240.3,7.02286023]
[1736905262553,0.4095,3241.3,3240.3,3.93674023]
[1736905262708,0.4095,3241.3,3240.3,7.02284023]
[1736905263042,0.4095,3241.3,3240.4,3.08603]
[1736905264749,3.49471,3241.3,3240.3,0.4297582]
[1736905264911,0.758971,3241.2,3240.1,6.08623]
[1736905265467,3.08537,3241.1,3240.0,30.0]
[1736905265654,0.4095,3241.1,3240.0,33.08633]
[1736905266181,3.49488,3241.1,3240.0,33.08633]
[1736905266327,3.49488,3241.1,3240.1,3.12524416]
[1736905266531,3.49488,3241.1,3240.1,6.21154416]
[1736905266965,0.4095,3241.0,3240.1,6.21154416]
[1736905267272,0.4095,3241.0,3240.1,3.12524416]
[1736905267459,0.4095,3241.0,3240.1,6.21152416]
[1736905267642,0.4095,3240.9,3240.0,30.0]
[1736905267853,3.192,3241.5,3240.0,30.0]
[1736905267854,0.4095,3240.7,3240.0,30.0]
[1736905268232,0.4095,3240.7,3240.1,3.08628]
[1736905268634,0.4095,3240.7,3240.0,30.0]
[1736905268935,3.08608,3240.4,3240.0,30.0]
[1736905269166,3.08623,3240.2,3240.0,30.0]
[1736905269385,0.4095,3240.1,3240.0,30.0]
[1736905270498,3.49582,3240.1,3240.0,30.0]
[1736905270861,6.49582,3240.1,3240.0,30.0]
[1736905271191,7.145402,3240.1,3240.0,30.0]
[1736905272553,7.7264659,3240.1,3240.0,22.28395]
[1736905272886,7.3169659,3240.1,3240.0,21.87445]
[1736905273092,10.17436593,3240.1,3240.0,10.00048859]
[1736905273296,3.08699,3239.4,3237.9,0.1686724]
[1736905273605,3.08758,3238.8,3237.9,0.1686724]
[1736905273987,3.0,3239.1,3237.9,0.1686724]
[1736905274343,3.08737,3239.0,3237.9,0.1686724]
[1736905274479,3.08737,3239.0,3237.9,0.49438864]
[1736905275415,3.50698203,3238.9,3237.9,0.1686724]
[1736905275906,3.08756,3238.8,3237.9,0.1686724]
[1736905276073,6.0873,3239.1,3238.0,3.08829]
[1736905276254,0.22416932,3239.3,3237.9,0.1686724]
[1736905276458,3.08736,3239.1,3237.9,3.58277864]
[1736905276682,0.03116932,3239.3,3237.9,3.58277864]
[1736905276683,3.28037,3239.0,3237.9,3.58277864]
[1736905277467,0.03116932,3239.3,3238.2,3.08812]
[1736905277676,3.11828932,3239.3,3238.2,3.08813]
[1736905277858,3.193,3239.2,3238.2,3.08813]
[1736905278059,3.193,3239.2,3238.2,3.477763]
[1736905278365,0.193,3239.2,3238.2,0.389633]
[1736905278564,0.193,3239.2,3238.0,0.83907993]
[1736905278770,0.193,3239.2,3238.3,3.08803]
[1736905279199,0.03116932,3239.3,3238.0,4.31518203]
[1736905279399,0.193,3239.2,3238.7,3.89582]
[1736905279559,0.193,3239.4,3238.7,0.8082]
[1736905279920,3.0864,3240.1,3238.3,0.8082]
[1736905279921,3.28014,3239.3,3238.3,0.8082]
[1736905280211,0.193,3239.2,3238.3,0.8082]
[1736905280415,0.193,3239.2,3238.4,0.389625]
[1736905280654,3.08728,3239.1,3238.0,3.89643]
[1736905281220,3.08739,3239.0,3238.0,0.8082]
[1736905281701,3.2802,3239.2,3238.0,3.89644]
[1736905281906,0.193,3239.2,3238.0,3.89644]
[1736905282108,3.0874,3239.0,3238.0,3.89644]
[1736905282355,3.0874,3239.0,3238.0,4.74875568]
[1736905282852,3.0,3239.1,3238.1,3.08819]
[1736905283200,3.08728,3239.1,3238.1,3.08819]
[1736905283405,3.193,3239.2,3238.2,3.08812]
[1736905283656,0.193,3239.2,3238.0,0.8082]
[1736905283962,3.0876,3238.8,3238.0,0.8082]
[1736905284521,3.0874,3239.0,3238.0,0.8082]
[1736905284847,0.193,3239.2,3238.0,0.8082]
[1736905285183,0.193,3239.2,3238.0,3.92736002]
[1736905285349,0.193,3239.2,3238.1,3.76030145]
[1736905285551,0.193,3239.2,3238.4,3.08793]
[1736905286670,3.0,3239.7,3238.5,3.08783]
[1736905286987,0.193,3239.6,3238.6,3.89592]
[1736905287167,3.08651,3239.9,3238.8,3.08754]
[1736905287370,0.193,3239.5,3238.6,1.22866597]
[1736905287527,0.193,3239.8,3238.7,3.50698203]
[1736905287724,0.193,3239.8,3239.4,3.08696]
[1736905287992,3.08582,3240.7,3239.5,0.8082]
[1736905288291,3.50698203,3241.0,3239.7,3.08668]
[1736905288292,0.193,3240.2,3239.7,3.08668]
[1736905289024,3.08569,3240.8,3239.7,3.08668]
[1736905289227,3.193,3240.7,3239.8,3.0866]
[1736905289931,0.193,3240.6,3239.8,3.0866]
[1736905290225,0.193,3240.8,3239.9,0.8082]
[1736905290447,0.193,3240.8,3240.0,3.08641]
[1736905290648,0.193,3240.8,3240.2,3.08614]
[1736905290859,1.50904095,3240.9,3240.3,3.08611]
[1736905291177,0.201,3241.2,3240.3,3.08611]
[1736905291680,0.201,3241.2,3240.6,0.8082]
[1736905291885,3.0,3241.5,3240.6,0.8082]
[1736905292061,0.201,3241.5,3240.7,3.08575]
[1736905292983,0.201,3241.5,3240.6,0.8082]
[1736905292984,0.201,3241.5,3240.9,3.08553]
[1736905293131,3.0,3241.8,3240.9,3.08553]
[1736905293325,0.201,3241.7,3240.9,3.08553]
[1736905293973,0.201,3241.7,3240.7,3.08575]
[1736905294157,3.0843,3242.3,3240.8,0.389395]
[1736905294359,3.08434,3242.2,3241.1,3.08534]
[1736905294673,3.0,3242.1,3241.1,3.08534]
[1736905295173,0.201,3242.1,3240.9,4.31518203]
[1736905295376,3.08461,3241.9,3240.9,4.31518203]
[1736905295731,3.08461,3241.9,3240.9,0.8082]
[1736905295934,0.201,3242.1,3240.9,3.89374]
[1736905295935,3.28542,3242.1,3240.9,3.89374]
[1736905296128,0.201,3242.1,3241.0,0.03085359]
[1736905296365,0.201,3242.1,3241.2,3.0852]
[1736905296871,3.201,3242.1,3240.9,4.70455603]
[1736905297280,3.201,3242.1,3241.0,0.03084987]
[1736905297647,3.08394,3242.6,3241.0,0.03084987]
[1736905297844,0.201,3242.5,3241.0,0.50439046]
[1736905298173,0.201,3242.4,3241.5,0.8082]
[1736905298733,3.201,3242.3,3241.5,0.8082]
[1736905299480,0.201,3242.3,3241.5,0.8082]
[1736905300958,0.201,3242.3,3241.5,3.89318]
[1736905301249,0.201,3242.3,3241.7,3.08479]
[1736905302247,3.0839,3242.7,3241.5,3.89316]
[1736905302248,0.201,3242.6,3241.5,3.89316]
[1736905302643,3.0839,3242.7,3241.5,3.89316]
[1736905302846,0.201,3242.6,3241.6,0.03084579]
[1736905303046,3.0839,3242.7,3241.5,3.89316]
[1736905303047,3.08379,3242.8,3241.5,0.8082]
[1736905303252,3.08404,3242.5,3241.5,0.8082]
[1736905304450,0.201,3242.7,3241.5,0.8082]
[1736905304646,3.08417,3242.4,3241.5,0.8082]
[1736905304949,3.08402,3242.6,3241.5,3.89314]
[1736905305262,3.08407,3242.5,3241.5,3.89314]
[1736905305561,3.08407,3242.5,3241.5,0.8082]
[1736905305967,0.201,3242.7,3241.5,0.83904887]
[1736905306176,0.201,3242.7,3241.7,3.08475]
[1736905306513,3.08383,3242.8,3241.7,3.08475]
[1736905306709,0.201,3242.7,3241.5,0.83904887]
[1736905306914,3.08383,3242.8,3241.7,3.50698203]
[1736905306915,0.201,3242.8,3241.7,3.50698203]
[1736905307160,0.201,3242.8,3242.0,3.0845]
[1736905307324,0.201,3242.8,3242.2,0.7924]
[1736905307525,0.201,3242.9,3242.2,0.7924]
[1736905307764,3.0,3243.1,3242.2,0.7924]
[1736905307928,0.201,3243.0,3242.2,0.7924]
[1736905308865,3.08359,3243.0,3242.2,0.7924]
[1736905309150,3.28466,3242.9,3242.2,0.7924]
[1736905309315,3.28466,3242.9,3241.9,3.08457]
[1736905309515,3.08366,3242.9,3241.9,3.87697]
[1736905309771,0.201,3242.8,3241.9,3.87697]
[1736905309947,0.201,3242.8,3241.9,0.7924]
[1736905310156,0.201,3242.8,3242.1,3.08432]
[1736905310768,3.08277,3243.9,3242.2,0.03084309]
[1736905310919,3.08301,3243.6,3242.3,0.7924]
[1736905311124,3.08317,3243.5,3242.4,3.08405]
[1736905311323,3.2842,3243.4,3242.4,3.08405]
[1736905311520,3.2842,3243.4,3242.3,0.7924]
[1736905311521,0.201,3243.4,3242.5,3.08397]
[1736905311757,0.201,3243.4,3242.6,3.08394]
[1736905311943,0.201,3243.4,3242.4,0.03083708]
[1736905312139,3.0825,3244.2,3243.2,0.7924]
[1736905312359,0.201,3244.1,3243.2,3.87574]
[1736905312624,0.201,3244.3,3243.6,3.08298]
[1736905312819,0.201,3244.3,3243.4,3.50698203]
[1736905313658,0.201,3244.3,3243.3,0.03082877]
[1736905313960,0.201,3244.3,3243.5,3.08308]
[1736905315023,3.08218,3244.5,3243.5,3.08308]
[1736905315253,0.201,3244.4,3243.5,3.08308]
[1736905315668,3.08166,3245.0,3243.9,3.0827]
[1736905315974,3.201,3244.8,3243.7,3.90608547]
[1736905316157,3.28287,3244.8,3243.7,3.90608547]
[1736905316875,0.201,3244.8,3243.9,3.08268]
[1736905317025,3.07825622,3244.7,3243.7,3.87529]
[1736905317873,0.201,3244.8,3243.3,0.7924]
[1736905318040,3.08234,3244.3,3243.3,0.7924]
[1736905318220,0.201,3244.8,3243.3,0.7924]
[1736905318221,3.08243,3244.2,3243.3,0.7924]
[1736905318460,3.08252,3244.1,3243.3,0.7924]
[1736905318810,3.08271,3243.9,3243.0,4.90523847]
[1736905319161,3.08283,3243.8,3243.0,1.39825644]
[1736905319357,0.61454532,3244.4,3243.0,0.7924]
[1736905319606,3.08292,3243.7,3243.0,0.7924]
[1736905319764,3.08292,3243.7,3242.7,3.87622]
[1736905319972,3.28692,3243.7,3242.7,3.87622]
[1736905320176,3.08309,3243.5,3242.7,0.7924]
[1736905320562,3.28699,3243.6,3242.7,1.39620458]
[1736905320759,3.08343,3243.2,3242.3,0.7924]
[1736905321080,3.28704,3243.6,3242.4,0.03083818]
[1736905321081,3.08321,3243.4,3242.4,0.03083818]
[1736905321701,3.08328,3243.3,3242.4,0.74144402]
[1736905322058,3.08309,3243.5,3242.4,3.85639215]
[1736905322310,3.08309,3243.5,3242.4,3.82555402]
[1736905322507,3.204,3243.6,3242.0,1.42130574]
[1736905322810,3.08357,3243.0,3242.0,1.42130574]
[1736905323264,3.0,3243.3,3242.0,1.42130574]
[1736905323658,3.08368,3242.9,3242.0,1.42130574]
[1736905324087,3.08318,3243.4,3242.0,1.42130574]
[1736905324303,0.55,3243.1,3241.7,0.8036]
[1736905324507,3.08416,3242.4,3241.7,0.8036]
[1736905324673,3.28828,3242.3,3241.7,0.8036]
[1736905324855,3.08434,3242.2,3241.7,0.8036]
[1736905325065,3.08442,3242.1,3241.7,0.8036]
[1736905325277,3.08442,3242.1,3241.2,0.8275]
[1736905325607,3.08453,3242.0,3241.2,0.8275]
[1736905325801,0.204,3242.3,3241.2,0.8275]
[1736905326020,3.08462,3241.9,3241.2,0.8275]
[1736905326433,3.08482,3241.7,3241.2,0.8275]
[1736905326717,3.08482,3241.7,3240.3,3.50698203]
[1736905326718,0.55,3242.2,3240.9,0.8275]
[1736905327189,3.0,3241.8,3240.9,0.8275]
[1736905327390,3.08474,3241.8,3240.9,0.8275]
[1736905327720,6.08451,3242.1,3241.0,3.08543]
[1736905327876,0.204,3242.0,3241.1,0.85835127]
[1736905328189,0.204,3241.9,3241.1,0.8275]
[1736905328396,0.204,3242.1,3241.1,0.8275]
[1736905328701,3.28842,3242.1,3241.1,0.8275]
[1736905328906,0.204,3242.1,3241.1,0.8275]
[1736905329226,3.08404,3242.5,3241.1,3.91282]
[1736905329436,3.28816,3242.4,3241.3,3.08516]
[1736905329722,3.0,3242.3,3241.4,0.8275]
[1736905330093,3.0839,3242.7,3241.4,3.94333842]
[1736905330269,0.204,3242.6,3241.4,0.85834842]
[1736905330473,0.204,3242.6,3241.6,0.8275]
[1736905330976,3.28799,3242.6,3241.6,0.8275]
[1736905331207,0.204,3242.6,3241.6,0.8275]
[1736905331405,3.08441,3242.2,3241.6,0.8275]
[1736905332022,0.55,3242.3,3241.1,0.8275]
[1736905332205,0.55,3242.5,3241.1,0.8275]
[1736905332376,3.08463,3241.9,3241.1,0.8275]
[1736905333020,3.08441,3242.2,3241.1,0.8275]
[1736905333188,3.08442,3242.1,3241.1,0.8275]
[1736905333388,0.55,3242.3,3241.1,0.8275]
[1736905333589,3.08472,3241.8,3241.1,0.8275]
[1736905333807,3.08454,3242.0,3241.1,0.8275]
[1736905333978,3.08474,3241.8,3241.1,0.8275]
[1736905334878,3.08451,3242.1,3241.1,0.8275]
[1736905335089,3.08451,3242.1,3240.5,6.50698203]
[1736905335090,0.204,3242.3,3241.3,0.8275]
[1736905335295,0.204,3242.5,3241.8,0.8275]
[1736905335508,3.08387,3242.7,3241.8,0.8275]
[1736905335732,0.204,3242.6,3241.8,0.8275]
[1736905336082,0.204,3242.5,3242.0,0.8275]
[1736905337030,3.05640005,3243.3,3242.0,3.91197]
[1736905337031,3.08356,3243.0,3242.0,3.91197]
[1736905337193,0.204,3242.7,3242.0,3.91197]
[1736905337403,0.204,3242.7,3242.2,3.08431]
[1736905337712,0.204,3242.7,3242.4,0.7542]
[1736905337920,0.204,3243.0,3242.4,0.7542]
[1736905338528,3.0,3243.3,3242.4,3.83831]
[1736905338734,0.204,3243.3,3242.5,0.03083759]
[1736905338902,0.204,3243.3,3242.6,0.7542]
[1736905339238,3.0828,3243.9,3242.9,0.7542]
[1736905339239,0.204,3243.8,3242.9,0.7542]
[1736905339411,0.204,3243.8,3243.0,0.03083218]
[1736905339981,3.08241,3244.3,3243.1,3.83765]
[1736905340230,0.204,3244.2,3243.3,0.7542]
[1736905340785,3.28621,3244.5,3243.4,0.03082909]
[1736905341009,3.28621,3244.5,3243.4,0.417652]
[1736905341355,3.08224,3244.4,3243.5,0.7542]
[1736905341937,0.204,3244.5,3243.6,0.030827]
[1736905342239,0.204,3244.5,3243.5,0.7542]
[1736905342615,0.204,3244.5,3243.6,3.11373699]
[1736905342828,0.204,3244.5,3243.8,3.83699]
[1736905343017,0.204,3244.6,3243.8,3.867813]
[1736905343333,0.204,3244.6,3243.8,0.7542]
[1736905343539,3.08186,3244.8,3243.8,0.7542]
[1736905343706,0.204,3244.7,3243.8,0.7542]
[1736905345144,3.28596,3244.7,3243.8,0.7542]
[1736905346040,0.204,3244.6,3243.8,0.7542]
[1736905346238,0.204,3244.6,3243.8,1.1409993]
[1736905346417,0.204,3244.6,3243.9,0.81462298]
[1736905346614,0.204,3244.6,3243.9,3.89730298]
[1736905346844,0.204,3244.7,3243.9,3.89730298]
[1736905347037,0.204,3244.7,3244.0,3.0826]
[1736905347338,3.08167,3245.0,3244.1,0.0308225]
[1736905347514,0.204,3244.9,3244.2,0.7838]
[1736905351252,1.89070978,3245.4,3244.3,0.03082066]
[1736905351413,1.89070978,3245.4,3244.4,0.7838]
[1736905351719,0.206,3245.3,3244.6,0.7838]
[1736905352114,0.206,3245.3,3244.7,0.03081742]
[1736905352455,0.206,3245.6,3244.8,0.7838]
[1736905352621,3.08136,3245.4,3244.8,0.7838]
[1736905352829,3.0814,3245.3,3244.8,0.7838]
[1736905353241,3.08167,3245.0,3243.9,0.7838]
[1736905353444,3.08178,3244.9,3243.9,4.2955782]
[1736905353643,3.08136,3245.4,3244.0,0.7838]
[1736905353842,3.08158,3245.1,3244.0,3.8664]
[1736905354139,3.08169,3245.0,3244.0,3.8664]
[1736905354932,3.08175,3244.9,3244.0,0.7838]
[1736905355854,0.156,3245.0,3244.0,0.7838]
[1736905356041,3.08197,3244.7,3244.0,0.7838]
[1736905356632,3.08178,3244.9,3244.0,0.7838]
[1736905356944,0.156,3245.0,3244.1,0.03082282]
[1736905357142,3.2377,3245.0,3244.1,0.03082282]
[1736905357518,3.08091,3245.8,3244.4,0.7838]
[1736905357730,3.50698203,3246.0,3244.1,0.4205461]
[1736905357731,0.206,3245.6,3244.5,0.7838]
[1736905357952,3.08118,3245.5,3244.5,0.7838]
[1736905358164,3.08137,3245.4,3244.5,0.7838]
[1736905358651,0.206,3245.6,3244.6,0.0308168]
[1736905358853,3.28712,3245.6,3244.7,0.7838]
[1736905359052,0.206,3245.6,3244.7,0.7838]
[1736905359257,3.08129,3245.4,3244.7,0.7838]
[1736905359756,3.08119,3245.5,3244.7,0.7838]
[1736905360361,3.0813,3245.4,3244.7,0.7838]
[1736905360665,3.08139,3245.3,3244.7,0.7838]
[1736905360839,0.206,3245.6,3244.7,0.7838]
[1736905361235,3.0816,3245.1,3244.7,0.7838]
[1736905361464,3.08191,3244.8,3243.8,3.08277]
[1736905361639,3.08191,3244.8,3243.9,0.386657]
[1736905361835,3.08191,3244.8,3244.0,0.7838]
[1736905362823,3.0817,3245.0,3244.0,0.7838]
[1736905363022,2.9317,3245.0,3244.0,0.7838]
[1736905363229,2.9317,3245.0,3244.1,3.08251]
[1736905363429,3.08136,3245.4,3244.3,0.7838]
[1736905363649,3.08139,3245.3,3244.4,0.7838]
[1736905363836,3.0,3245.2,3244.4,0.7838]
[1736905366076,3.08159,3245.1,3244.4,0.7838]
[1736905366240,0.55,3245.4,3244.4,0.7838]
[1736905367064,3.08168,3245.0,3244.4,0.7838]
[1736905367272,3.0,3245.5,3244.4,0.7838]
[1736905367565,3.08121,3245.5,3244.5,0.7545]
[1736905367880,3.08121,3245.5,3244.6,0.7545]
[1736905368093,3.08121,3245.5,3244.6,0.78531673]
[1736905368296,0.206,3245.6,3244.6,0.7545]
[1736905368439,3.08145,3245.3,3244.6,0.7545]
[1736905368632,3.08149,3245.2,3244.6,0.7545]
[1736905368833,0.206,3245.5,3244.6,0.7545]
[1736905369081,3.08159,3245.1,3244.6,0.7545]
[1736905371582,3.28723,3245.5,3244.6,0.7545]
[1736905371883,3.69498559,3245.9,3244.9,3.08168]
[1736905372035,0.206,3245.7,3245.1,0.7545]
[1736905372437,3.0,3245.8,3245.1,0.7545]
[1736905372648,0.82014559,3245.9,3245.1,0.7545]
[1736905373059,3.0,3245.7,3245.1,0.7545]
[1736905373266,3.08111,3245.6,3245.1,0.7545]
[1736905373471,3.0809,3245.8,3245.1,0.7545]
[1736905373472,3.0,3245.7,3245.1,0.7545]
[1736905373798,3.08138,3245.3,3244.3,3.83681]
[1736905373955,3.0816,3245.1,3244.3,1.438181]
[1736905374156,3.55,3245.5,3244.3,0.7545]
[1736905374465,3.08184,3244.9,3244.3,0.7545]
[1736905374855,0.206,3244.9,3244.3,0.7545]
[1736905375140,3.08195,3244.7,3244.3,0.7545]
[1736905375302,3.08216,3244.5,3243.7,0.7545]
[1736905375707,3.28782,3244.9,3243.7,0.7545]
[1736905375708,3.0,3244.8,3243.7,0.7545]
[1736905375903,3.0822,3244.5,3243.7,0.7545]
[1736905376330,3.0823,3244.4,3243.7,0.7545]
[1736905378425,3.08206,3244.6,3243.7,0.7545]
[1736905378625,3.08206,3244.6,3243.7,1.14134067]
[1736905380139,3.08206,3244.6,3243.8,0.7545]
[1736905380336,0.206,3244.9,3243.8,0.7545]
[1736905380673,3.50698203,3244.4,3243.4,0.7545]
[1736905380815,3.08279,3243.9,3243.4,0.7545]
[1736905381150,3.28983,3243.8,3243.4,0.7545]
[1736905381322,3.08291,3243.7,3243.4,0.7545]
[1736905381530,0.207,3243.8,3243.4,0.7545]
[1736905381727,3.08151,3245.2,3243.4,0.7545]
[1736905381728,3.08199,3244.7,3243.4,0.7545]
[1736905381935,0.207,3244.6,3243.6,0.7836]
[1736905382277,0.207,3244.5,3243.6,0.7836]
[1736905382421,3.0826,3244.1,3243.6,0.7836]
[1736905382749,3.08236,3244.3,3243.6,0.7836]
[1736905383251,0.207,3244.5,3243.8,0.7836]
[1736905383434,0.207,3244.5,3243.8,1.17333181]
[1736905383951,3.0,3244.7,3243.8,1.17333181]
[1736905384275,0.80588564,3245.9,3244.0,0.7836]
[1736905384414,0.207,3245.5,3244.7,0.7836]
[1736905384613,0.207,3245.5,3244.7,3.86552]
[1736905384836,0.207,3245.7,3244.8,0.7836]
[1736905385050,0.207,3245.7,3244.8,3.08177]
[1736905385250,4.2284203,3246.0,3245.2,0.7836]
[1736905385251,1.33209561,3246.0,3245.2,0.7836]
[1736905385415,1.33209561,3246.0,3245.3,3.08136]
[1736905385621,1.33209561,3246.0,3245.4,0.7836]
[1736905386269,0.82675978,3246.0,3245.4,0.7836]
[1736905386426,3.28743,3246.3,3245.4,0.7836]
[1736905386823,3.10332469,3246.3,3245.4,0.7836]
[1736905387063,3.55,3246.1,3245.4,0.7836]
[1736905387295,3.55,3245.9,3245.4,0.7836]
[1736905387428,3.081,3245.7,3245.1,0.7836]
[1736905387627,3.55,3245.9,3245.1,0.7836]
[1736905387962,3.55,3245.7,3245.1,0.7836]
[1736905388622,3.50776642,3246.0,3245.1,0.7836]
[1736905388623,3.55,3245.9,3245.1,0.7836]
[1736905388859,6.63082,3245.9,3245.1,0.7836]
[1736905389038,3.55,3245.7,3245.1,0.7836]
[1736905389645,3.08117,3245.6,3245.1,0.7836]
[1736905389875,0.55,3245.8,3245.1,0.7836]
[1736905389876,3.08131,3245.4,3245.1,0.7836]
[1736905390300,3.08121,3245.5,3245.1,0.7836]
[1736905390503,0.206,3245.3,3245.1,0.7836]
[1736905390807,3.28747,3245.3,3244.5,0.7836]
[1736905390986,0.206,3245.3,3244.5,0.7836]
[1736905391193,0.206,3245.3,3244.5,1.17326368]
[1736905391365,0.206,3245.3,3244.6,0.7836]
[1736905391561,0.206,3245.3,3244.6,0.81441616]
[1736905391999,0.206,3245.3,3244.6,0.7836]
[1736905392996,3.28742,3245.3,3244.6,0.7836]
[1736905393397,3.08147,3245.2,3244.6,0.7836]
[1736905393621,0.306,3245.3,3244.6,0.7836]
[1736905394102,3.38739,3245.3,3244.6,0.7836]
[1736905394910,0.306,3245.3,3244.6,0.7836]
[1736905395112,0.306,3245.3,3244.6,1.170182]
[1736905395421,0.306,3245.3,3244.6,0.81441549]
[1736905395978,0.1,3245.3,3244.6,0.81441549]
[1736905396381,0.1,3245.3,3244.6,0.7836]
[1736905397203,0.1,3245.3,3244.9,0.7836]
[1736905397618,0.1,3245.3,3245.0,0.03081537]
[1736905397817,0.1,3245.3,3245.0,0.798]
[1736905398009,0.1,3245.3,3245.0,1.21677924]
[1736905398218,0.1,3245.3,3245.2,0.798]
[1736905402016,0.1,3245.3,3245.2,3.91028052]
[1736905402187,0.1,3245.3,3245.2,3.87947]
[1736905403695,0.1,3245.3,3245.2,0.798]
[1736905406741,0.1,3245.3,3245.2,0.82881087]
[1736905406948,0.1,3245.3,3245.2,1.18904209]
[1736905407151,0.1,3245.3,3245.2,4.30132288]
[1736905410657,0.1,3245.3,3245.2,4.91565018]
[1736905412955,0.211,3246.9,3245.3,0.798]
[1736905413217,3.07958,3247.2,3246.2,3.8785]
[1736905413352,0.211,3247.1,3246.2,3.8785]
[1736905413770,0.211,3247.1,3246.3,3.11122073]
[1736905413992,0.211,3247.1,3246.3,0.03080073]
[1736905414802,0.211,3247.1,3246.2,0.798]
[1736905415172,3.0798,3247.0,3246.2,0.798]
[1736905415481,0.211,3247.1,3245.8,3.08084]
[1736905415675,3.0,3246.9,3245.8,3.50260968]
[1736905416086,3.0,3246.9,3245.9,3.08079]
[1736905416284,3.0,3246.9,3246.0,0.03080322]
[1736905416484,3.29067,3247.1,3246.1,3.87859]
[1736905416686,3.07977,3247.0,3246.1,0.798]
[1736905416894,3.0,3246.9,3246.1,0.798]
[1736905417264,3.07986,3246.9,3246.1,0.798]